bitfinex-derivatives/quotes_ETHF0:USTF0_20250520
["timestamp","ask_amount","ask_price","bid_price","bid_amount"]
[1747774322598,0.00596421,2514.6,2514.4,2.632505]
[1747774322799,0.79507,2514.5,2514.0,3.2078]
[1747774323001,0.79526,2513.9,2513.8,0.6644]
[1747774323405,0.79515,2514.3,2513.8,9.05488]
[1747774323700,0.00596421,2514.6,2514.0,3.2078]
[1747774323900,0.79508,2514.5,2514.3,3.2078]
[1747774324106,0.00596421,2514.6,2514.4,1.4015]
[1747774324302,0.79507,2514.5,2514.4,1.4015]
[1747774324499,0.00596421,2514.6,2514.4,3.389965]
[1747774324904,0.80102421,2514.6,2514.4,3.389965]
[1747774325104,0.80102421,2514.6,2514.5,0.6722]
[1747774325315,0.80102421,2514.6,2514.5,2.0737]
[1747774325603,0.00596421,2514.6,2514.5,4.857195]
[1747774325797,1.98693,2515.5,2514.5,11.049765]
[1747774326002,0.79491,2515.1,2515.0,3.2078]
[1747774326410,0.79491,2515.1,2515.0,5.51384663]
[1747774326707,0.00596421,2515.3,2515.0,11.83154663]
[1747774326914,0.79488,2515.1,2515.0,4.84351664]
[1747774327112,0.79488,2515.1,2515.0,6.83147164]
[1747774327411,0.79488,2515.1,2515.0,4.84351664]
[1747774327611,0.79488,2515.1,2515.0,3.62374663]
[1747774327805,2.78291,2515.1,2515.0,1.63571664]
[1747774328815,0.79488,2515.1,2515.0,1.63571664]
[1747774329115,0.79488,2515.1,2515.0,11.83154663]
[1747774330004,0.00596421,2515.3,2515.0,11.83154663]
[1747774330206,0.79488,2515.1,2515.0,6.83154663]
[1747774330513,0.00596421,2515.3,2515.0,6.83154663]
[1747774330713,0.79487,2515.2,2515.0,7.62644663]
[1747774330905,0.00596421,2515.3,2515.2,0.79485]
[1747774331113,0.80077421,2515.3,2515.2,5.0]
[1747774331306,2.78864921,2515.3,2515.2,1.3656]
[1747774331713,0.80077421,2515.3,2515.2,1.3656]
[1747774331908,0.80077421,2515.3,2515.2,3.353475]
[1747774332421,0.80077421,2515.3,2515.2,4.03773226]
[1747774333215,0.00596421,2515.3,2515.2,4.03773226]
[1747774333510,0.80077421,2515.3,2515.2,4.03773226]
[1747774333813,0.80077421,2515.3,2515.2,4.20867136]
[1747774335018,0.80077421,2515.3,2515.2,2.22079636]
[1747774335209,2.78864921,2515.3,2515.2,2.22079636]
[1747774335517,0.80077421,2515.3,2515.2,2.22079636]
[1747774336113,0.80077421,2515.3,2515.2,4.20867136]
[1747774336114,0.00596421,2515.3,2515.2,4.20867136]
[1747774336415,0.00596421,2515.3,2515.2,5.00352136]
[1747774336715,0.00596421,2515.3,2515.2,5.67892136]
[1747774337118,0.00596421,2515.3,2515.2,5.14174164]
[1747774337813,0.00596421,2515.3,2515.2,4.34689164]
[1747774338016,0.80077421,2515.3,2515.2,4.34689164]
[1747774338409,0.00596421,2515.3,2515.2,5.14174164]
[1747774338813,0.00596421,2515.3,2515.2,10.14174164]
[1747774339311,0.00596421,2515.3,2515.2,10.8760587]
[1747774340121,0.80077421,2515.3,2515.2,10.8760587]
[1747774340325,0.80077421,2515.3,2515.2,5.0812087]
[1747774340717,0.80077421,2515.3,2515.2,5.8760587]
[1747774340920,0.80077421,2515.3,2515.2,5.0812087]
[1747774341117,0.80077421,2515.3,2515.2,5.16607347]
[1747774342420,0.00596421,2515.3,2515.2,10.22660641]
[1747774342722,1.98635,2516.2,2515.4,1.98691]
[1747774342909,0.79464,2515.9,2515.7,4.00246]
[1747774343114,0.79464,2515.9,2515.8,1.3555]
[1747774343619,0.79464,2515.9,2515.8,3.34289999]
[1747774344023,0.79464,2515.9,2515.8,3.66091663]
[1747774344420,0.79464,2515.9,2515.8,0.31801664]
[1747774344618,2.78204,2515.9,2515.8,0.31801664]
[1747774345423,0.80054421,2516.1,2515.8,3.59631663]
[1747774345623,0.79459,2516.0,2515.9,0.79461]
[1747774345824,0.79459,2516.0,2515.9,2.08551]
[1747774346025,0.79459,2516.0,2515.9,3.27822]
[1747774346422,0.79459,2516.0,2515.9,3.96258757]
[1747774347227,2.17589,2516.0,2515.9,3.96258757]
[1747774347629,12.37101,2516.0,2515.9,0.67840336]
[1747774347924,9.16321,2516.0,2515.9,0.67840336]
[1747774348117,9.16321,2516.0,2515.9,0.31801664]
[1747774348318,12.37101,2516.0,2515.9,0.31801664]
[1747774348519,9.16321,2516.0,2515.9,0.31801664]
[1747774348718,4.16321,2516.0,2515.9,0.31801664]
[1747774349319,4.1515128,2516.0,2515.9,0.31801664]
[1747774349631,9.1515128,2516.0,2515.9,6.64e-06]
[1747774349823,0.79481,2515.3,2515.2,3.29266477]
[1747774350334,2.782685,2515.3,2515.2,3.29266477]
[1747774351131,3.2078,2515.7,2515.2,5.28053977]
[1747774351334,0.79478,2515.4,2515.3,2.1218]
[1747774351534,4.6176,2515.7,2515.3,2.1218]
[1747774351739,0.79478,2515.5,2515.3,2.1218]
[1747774351934,0.79475,2515.5,2515.4,0.79478]
[1747774352137,0.79475,2515.5,2515.4,2.12178]
[1747774352437,0.79475,2515.5,2515.4,3.314715]
[1747774353428,0.79482,2515.3,2515.2,3.29266477]
[1747774353828,2.10211,2515.4,2515.2,6.07538977]
[1747774354131,0.79476,2515.5,2515.4,0.79477]
[1747774354336,1.3073,2515.7,2515.3,2.19219]
[1747774354537,0.79478,2515.4,2515.3,1.3974]
[1747774355039,2.782575,2515.4,2515.3,1.3974]
[1747774355230,1.987795,2515.4,2515.3,2.19222]
[1747774355436,0.79475,2515.5,2515.4,0.79478]
[1747774355636,3.2078,2515.7,2515.4,1.3974]
[1747774355836,0.79475,2515.5,2515.4,1.3974]
[1747774356444,0.79475,2515.5,2515.4,4.179895]
[1747774359139,0.79474,2515.6,2515.5,0.79472]
[1747774359340,0.79474,2515.6,2515.5,1.3506]
[1747774359941,0.79462,2516.0,2515.9,0.7946]
[1747774360143,0.79466,2515.9,2515.8,0.79464]
[1747774360546,0.79466,2515.9,2515.8,4.13263999]
[1747774362044,0.79461,2516.0,2515.9,0.7946]
[1747774362350,0.79461,2516.0,2515.9,2.1452]
[1747774362548,0.79461,2516.0,2515.9,4.13252]
[1747774362749,0.79461,2516.0,2515.9,4.45042441]
[1747774363147,2.78193,2516.0,2515.9,0.31790441]
[1747774364051,4.77713,2516.0,2515.9,0.31790441]
[1747774364242,0.79466,2515.8,2515.7,0.79469]
[1747774364447,0.79469,2515.7,2515.6,2.4557242]
[1747774364652,0.79468,2515.8,2515.7,0.79468]
[1747774365546,0.79468,2515.8,2515.7,1.11260765]
[1747774366348,1.98748001,2515.8,2515.7,3.52572765]
[1747774366651,2.78214001,2515.8,2515.7,0.31792765]
[1747774368151,2.78214001,2515.8,2515.4,4.8842242]
[1747774368346,0.7947,2515.7,2515.6,0.7947]
[1747774368847,4.59822,2516.0,2515.6,0.7947]
[1747774368848,0.00596421,2516.1,2515.6,3.97434999]
[1747774369154,0.79442,2516.6,2516.5,0.79443]
[1747774369341,0.79439,2516.7,2516.5,3.2078]
[1747774369545,0.79439,2516.7,2516.6,1.371]
[1747774369743,0.79441,2516.6,2516.3,0.7945]
[1747774369948,0.79444,2516.5,2516.3,2.1655]
[1747774370145,2.12093,2516.6,2516.4,0.79446]
[1747774370347,0.79444,2516.5,2516.4,1.371]
[1747774370544,2.12094,2516.5,2516.4,1.68883331]
[1747774370749,1.3265,2516.5,2516.4,3.67575831]
[1747774371055,1.3265,2516.5,2516.4,4.47022831]
[1747774371252,0.00596421,2516.7,2516.4,3.67575831]
[1747774371556,2.78719921,2516.7,2516.5,4.00222]
[1747774371860,2.78717921,2516.7,2516.6,1.303]
[1747774372763,2.78717921,2516.7,2516.3,0.2755242]
[1747774372764,6.99280921,2516.7,2516.3,0.2755242]
[1747774372958,0.79445,2516.5,2516.3,0.2755242]
[1747774373154,1.383,2516.6,2516.3,2.09748]
[1747774373359,3.369925,2516.6,2516.3,1.303]
[1747774373554,3.369925,2516.6,2516.3,2.09749]
[1747774373755,4.164355,2516.6,2516.3,2.09749]
[1747774373955,4.164355,2516.6,2516.4,0.79447]
[1747774374261,3.369925,2516.6,2516.5,0.79444]
[1747774374461,0.79449,2516.4,2516.3,0.79448]
[1747774374759,0.79449,2516.4,2516.3,2.12508]
[1747774374955,0.79449,2516.4,2516.3,4.112085]
[1747774375257,0.79445,2516.5,2516.4,0.79445]
[1747774375462,0.7945,2516.3,2516.2,3.21376421]
[1747774375958,2.781585,2516.3,2516.2,4.00829421]
[1747774376762,1.987085,2516.3,2516.2,4.00829421]
[1747774376962,0.00596421,2516.7,2516.2,5.20084921]
[1747774377262,0.00596421,2516.7,2516.2,3.21376421]
[1747774377263,0.7945,2516.3,2516.2,3.21376421]
[1747774377663,2.781585,2516.3,2516.2,3.21376421]
[1747774383467,2.781585,2516.3,2516.2,0.00596421]
[1747774384767,7.781585,2516.3,2516.2,4.21e-06]
[1747774384968,9.163485,2516.3,2516.2,4.21e-06]
[1747774385159,34.863485,2516.3,2516.2,4.21e-06]
[1747774385467,4.163485,2516.3,2516.2,4.21e-06]
[1747774385670,4.163485,2516.3,2516.2,0.08486898]
[1747774386169,9.163485,2516.3,2516.2,0.08486898]
[1747774386556,9.163485,2516.3,2516.2,8.98e-06]
[1747774386761,0.79478,2515.4,2515.3,3.4833242]
[1747774387062,0.79478,2515.4,2515.3,3.2078]
[1747774387364,2.782575,2515.4,2515.3,3.2078]
[1747774389369,0.79484,2515.2,2515.1,1.37296421]
[1747774389570,0.79484,2515.2,2515.1,0.00596421]
[1747774389866,2.782795,2515.2,2515.1,0.00596421]
[1747774390067,4.165295,2515.2,2515.1,0.00596421]
[1747774390464,17.320295,2515.2,2515.1,0.00596421]
[1747774391161,22.320295,2515.2,2515.1,4.21e-06]
[1747774391370,4.165295,2515.2,2515.1,4.21e-06]
[1747774391569,2.17734,2515.2,2515.1,4.21e-06]
[1747774391774,0.79484,2515.2,2515.1,4.21e-06]
[1747774393067,3.37544421,2515.4,2515.1,4.21e-06]
[1747774393068,0.79483,2515.3,2515.1,4.21e-06]
[1747774393372,0.79484,2515.2,2515.1,4.21e-06]
[1747774393873,0.79484,2515.2,2515.1,1.98795921]
[1747774397371,0.00596421,2515.4,2515.3,0.79481]
[1747774397673,1.98655,2516.0,2515.3,0.79481]
[1747774397674,0.79473,2515.6,2515.3,5.19483]
[1747774397877,0.79475,2515.5,2515.4,2.0911]
[1747774398267,0.79475,2515.5,2515.4,4.078815]
[1747774398472,0.79474,2515.6,2515.5,0.79474]
[1747774398672,0.79474,2515.6,2515.5,2.18224]
[1747774398875,0.79474,2515.6,2515.5,4.16987499]
[1747774399275,0.80066421,2515.7,2515.6,0.79472]
[1747774399478,0.80066421,2515.7,2515.6,0.6904]
[1747774399678,0.80066421,2515.7,2515.6,2.67795999]
[1747774400873,0.80066421,2515.7,2515.6,3.47267999]
[1747774401074,0.79456,2516.1,2515.7,1.98669]
[1747774401380,0.79456,2516.1,2516.0,3.2078]
[1747774401769,0.79462,2515.9,2515.8,1.3211]
[1747774402174,0.79462,2515.9,2515.8,3.30849999]
[1747774404085,2.78202,2515.9,2515.8,1.3211]
[1747774404578,1.9874,2515.9,2515.4,3.9114]
[1747774404881,0.79475,2515.5,2515.4,3.9114]
[1747774405377,2.78246501,2515.5,2515.4,3.9114]
[1747774405974,2.78246501,2515.5,2515.4,5.2172]
[1747774406885,2.78246501,2515.5,2515.4,4.5136]
[1747774408378,2.78246501,2515.5,2515.4,4.83156449]
[1747774409477,2.78246501,2515.5,2515.4,5.62634449]
[1747774409778,0.79475,2515.6,2515.5,0.79475]
[1747774409979,2.782425,2515.6,2515.5,1.3141]
[1747774412381,2.782425,2515.6,2515.5,2.10885]
[1747774412585,0.79467,2515.9,2515.8,0.79462]
[1747774412779,5.20017421,2516.1,2515.7,3.2078]
[1747774412780,0.79465,2515.8,2515.7,3.2078]
[1747774412978,0.79469,2515.7,2515.6,0.6513]
[1747774413283,0.79472,2515.6,2515.5,1.3141]
[1747774414073,0.79472,2515.6,2515.5,1.39896477]
[1747774414275,2.782355,2515.6,2515.5,1.39896477]
[1747774414977,2.782355,2515.6,2515.5,1.71693478]
[1747774415480,2.782355,2515.6,2515.5,0.40283478]
[1747774415984,2.782355,2515.6,2515.5,0.08486477]
[1747774416183,3.974465,2515.6,2515.2,0.2755242]
[1747774416385,0.79481,2515.3,2515.2,0.2755242]
[1747774416880,2.782685,2515.3,2515.2,0.2755242]
[1747774417487,1.987875,2515.3,2515.2,0.31800715]
[1747774417687,2.782685,2515.3,2515.2,0.31800715]
[1747774418287,10.990485,2515.3,2515.2,0.30607873]
[1747774418585,0.79485,2515.2,2515.1,4.21e-06]
[1747774418783,28.52255,2515.2,2515.1,4.21e-06]
[1747774419097,35.510505,2515.2,2515.1,4.21e-06]
[1747774420385,35.82898744,2515.2,2515.1,4.21e-06]
[1747774420582,0.79515,2514.3,2514.1,0.2755242]
[1747774420778,3.2078,2514.8,2514.1,0.2755242]
[1747774420982,2.14494,2514.6,2514.3,0.79511]
[1747774421181,2.14494,2514.6,2514.4,1.353]
[1747774421384,0.79507,2514.5,2514.4,1.353]
[1747774421884,2.783575,2514.5,2514.4,1.353]
[1747774422081,4.133475,2514.5,2514.4,1.353]
[1747774425095,0.80098421,2514.7,2514.4,1.353]
[1747774425392,0.80096421,2514.7,2514.6,3.2078]
[1747774425783,0.80096421,2514.7,2514.6,5.19615]
[1747774427101,0.80096421,2514.7,2514.6,3.2078]
[1747774428584,2.78931421,2514.7,2514.6,3.2078]
[1747774429492,0.80096421,2514.7,2514.6,3.2078]
[1747774429996,2.78931421,2514.7,2514.6,3.2078]
[1747774430294,2.78931421,2514.7,2514.6,3.29266477]
[1747774432606,1.99431421,2514.7,2514.6,3.29266477]
[1747774432896,2.78932421,2514.7,2514.6,0.08486477]
[1747774434103,5.99712421,2514.7,2514.6,0.08486477]
[1747774435291,10.99712421,2514.7,2514.6,0.08486477]
[1747774436000,36.69712421,2514.7,2514.6,0.08486477]
[1747774436293,36.69712421,2514.7,2514.2,0.00596421]
[1747774436294,0.79513,2514.3,2514.2,0.00596421]
[1747774436493,13.90313,2514.3,2514.2,0.00596421]
[1747774436802,15.891795,2514.3,2514.2,0.00596421]
[1747774436995,15.891795,2514.3,2513.7,3.2078]
[1747774436996,0.79529,2513.8,2513.7,3.2078]
[1747774437192,0.79532,2513.7,2513.6,0.2755242]
[1747774437496,0.79548,2513.2,2513.0,3.2078]
[1747774437703,13.90348,2513.2,2513.0,3.2078]
[1747774437904,15.893015,2513.2,2513.0,3.2078]
[1747774438104,0.79551,2513.1,2513.0,3.48349364]
[1747774438309,2.16571,2513.1,2513.0,3.48349364]
[1747774438596,7.363125,2513.1,2513.0,0.27569364]
[1747774439707,0.79555,2513.0,2512.9,0.00596421]
[1747774439900,2.13015,2513.0,2512.9,0.00596421]
[1747774440100,4.119845,2513.0,2512.9,0.00596421]
[1747774440298,17.229845,2513.0,2512.9,0.00596421]
[1747774441006,18.523945,2513.0,2512.9,0.00596421]
[1747774443312,18.523945,2513.0,2512.2,1.3204]
[1747774443313,0.79577,2512.3,2512.2,1.3204]
[1747774443801,13.113,2512.4,2512.2,4.10645]
[1747774443999,28.9078,2512.6,2512.2,3.31061]
[1747774444000,25.7,2512.6,2512.2,3.31061]
[1747774444205,25.7,2512.6,2512.4,3.2078]
[1747774444206,13.9087,2512.5,2512.4,3.2078]
[1747774444608,0.7957,2512.5,2512.4,5.19789]
[1747774444802,25.7,2512.8,2512.4,5.19789]
[1747774445000,53.199,2513.3,2512.7,3.2078]
[1747774445204,53.199,2513.3,2512.8,1.3894]
[1747774445205,14.5033,2513.3,2512.8,1.3894]
[1747774445407,0.79558,2512.9,2512.8,2.0722]
[1747774445805,0.79558,2512.9,2512.8,4.06197499]
[1747774446304,3.2078,2513.2,2512.8,2.0722]
[1747774446505,21.689415,2513.3,2512.8,2.0722]
[1747774446711,0.79555,2513.0,2512.9,0.7011]
[1747774446906,0.79555,2513.0,2512.9,2.0905]
[1747774447106,0.79555,2513.0,2512.9,4.080195]
[1747774447514,0.79555,2513.0,2512.9,4.16505977]
[1747774449306,13.102,2513.2,2512.9,4.16505977]
[1747774449511,0.79553,2513.1,2512.9,2.17536477]
[1747774449712,0.79554,2513.0,2512.9,2.17536477]
[1747774450110,0.79554,2513.0,2512.9,4.16505977]
[1747774450514,0.79552,2513.1,2512.9,4.16505977]
[1747774450712,0.79554,2513.0,2512.9,2.17536477]
[1747774451115,0.79554,2513.0,2512.9,4.16505977]
[1747774453407,2.785235,2513.0,2512.9,1.47426477]
[1747774453611,15.888235,2513.0,2512.9,0.08486477]
[1747774454216,0.79567,2512.6,2512.5,1.4058]
[1747774454423,0.7957,2512.5,2512.4,3.2078]
[1747774454719,2.1888,2512.5,2512.4,3.2078]
[1747774454914,0.31895512,2513.8,2512.4,5.19713]
[1747774455113,0.31895512,2513.8,2512.7,3.2078]
[1747774455114,0.79562,2512.8,2512.7,3.2078]
[1747774455511,0.79562,2512.8,2512.7,5.19765]
[1747774455718,0.79562,2512.8,2512.7,3.2078]
[1747774455922,0.79559,2512.9,2512.7,3.2078]
[1747774456220,13.89852,2513.1,2512.8,2.20139]
[1747774456522,0.79554,2513.0,2512.9,0.6463]
[1747774456717,0.79554,2513.0,2512.9,2.13696477]
[1747774456921,0.79554,2513.0,2512.9,4.12665977]
[1747774458816,1.4089,2513.1,2512.9,4.12665977]
[1747774459015,0.00596421,2513.4,2513.3,0.79545]
[1747774459219,0.00596421,2513.4,2513.2,1.3169]
[1747774459615,0.79545,2513.3,2513.2,1.3169]
[1747774459811,2.79081921,2513.4,2513.2,1.3169]
[1747774460020,0.79545,2513.3,2513.2,1.3169]
[1747774460415,2.784905,2513.3,2513.2,1.3169]
[1747774463325,0.79551,2513.1,2513.0,3.2078]
[1747774463716,2.785125,2513.1,2513.0,3.2078]
[1747774464318,0.79554,2513.0,2512.9,0.08486477]
[1747774464828,4.108635,2513.0,2512.9,0.08486477]
[1747774465125,2.785235,2513.0,2512.9,0.08486477]
[1747774465319,2.785235,2513.0,2512.9,1.46766477]
[1747774467227,2.785235,2513.0,2512.9,1.78596246]
[1747774468230,4.073135,2513.0,2512.9,1.78596246]
[1747774468930,4.073135,2513.0,2512.9,0.40316246]
[1747774471648,4.073135,2513.0,2512.9,3.61096246]
[1747774471849,4.073135,2513.0,2512.9,0.40316246]
[1747774475039,4.073135,2513.0,2512.9,1.70126246]
[1747774475741,0.79554,2513.0,2512.9,4.48651746]
[1747774477149,0.79554,2513.0,2512.9,7.69431746]
[1747774477445,1.3937,2513.2,2512.9,6.89875746]
[1747774477640,0.7955,2513.2,2513.1,0.79551]
[1747774477845,13.08596421,2513.4,2513.0,1.3826]
[1747774478143,15.07451421,2513.4,2513.1,1.3201]
[1747774478337,0.79548,2513.2,2513.1,1.3201]
[1747774478533,0.80139421,2513.4,2513.1,3.309555]
[1747774478737,0.80138421,2513.4,2513.3,3.2078]
[1747774479133,0.80138421,2513.4,2513.3,5.197175]
[1747774479438,0.80138421,2513.4,2513.3,6.585275]
[1747774480142,2.79075922,2513.4,2513.3,4.5959]
[1747774480347,2.79075922,2513.4,2513.3,4.91419769]
[1747774481749,2.79075922,2513.4,2513.3,3.52609769]
[1747774481939,2.79075922,2513.4,2513.3,0.31829769]
[1747774482552,5.99855922,2513.4,2513.3,0.31829769]
[1747774482741,0.79554,2513.0,2512.9,0.45448278]
[1747774483347,2.785235,2513.0,2512.9,0.45448278]
[1747774483745,4.066535,2513.0,2512.9,0.08486477]
[1747774490550,7.274335,2513.0,2512.9,0.08486477]
[1747774490753,12.274335,2513.0,2512.9,0.08486477]
[1747774490952,0.79567,2512.6,2512.5,3.57741801]
[1747774491152,13.87567,2512.6,2512.5,3.57741801]
[1747774491449,15.86568,2512.6,2512.5,3.57741801]
[1747774491650,15.86568,2512.6,2512.5,3.2078]
[1747774492853,17.24948,2512.6,2512.5,3.2078]
[1747774493043,2.78568,2512.6,2512.5,3.2078]
[1747774493243,15.86668,2512.6,2512.5,3.2078]
[1747774495256,0.7958,2512.2,2512.1,0.37558222]
[1747774495448,17.0856,2512.2,2512.1,0.37558222]
[1747774495648,19.075925,2512.2,2512.1,0.37558222]
[1747774495946,19.075925,2512.2,2512.1,0.00596421]
[1747774496543,20.395225,2512.2,2512.1,0.00596421]
[1747774496747,7.313225,2512.2,2512.1,0.00596421]
[1747774497053,5.198125,2512.2,2512.1,0.00596421]
[1747774497260,2.786125,2512.2,2512.1,1.34406421]
[1747774497448,3.2078,2512.5,2512.1,8.33438921]
[1747774497644,3.2078,2512.5,2512.1,4.13020921]
[1747774497645,0.79576,2512.4,2512.1,4.13020921]
[1747774497952,0.79576,2512.4,2512.2,1.3381]
[1747774498252,0.79574,2512.4,2512.2,1.3381]
[1747774498445,0.79574,2512.4,2512.3,0.6462]
[1747774498646,0.79573,2512.4,2512.3,0.6462]
[1747774498852,15.07112,2512.7,2512.3,3.97447]
[1747774499056,0.7957,2512.5,2512.4,0.6432]
[1747774499354,0.7957,2512.5,2512.4,1.9813]
[1747774499557,0.7957,2512.5,2512.4,3.97139]
[1747774499851,0.79562,2512.8,2512.5,0.79569]
[1747774500051,13.082,2513.0,2512.6,1.2938]
[1747774500256,17.08534,2513.0,2512.9,0.08486477]
[1747774500757,19.075035,2513.0,2512.9,0.08486477]
[1747774501451,3.21376421,2513.4,2512.9,2.07455977]
[1747774501652,0.00596421,2513.4,2513.1,3.2078]
[1747774501854,0.00596421,2513.4,2513.1,5.197255]
[1747774502054,0.80138421,2513.4,2513.2,1.2938]
[1747774502352,0.00596421,2513.4,2513.2,1.2938]
[1747774502554,0.00596421,2513.4,2513.2,3.283215]
[1747774502753,0.00596421,2513.4,2513.3,1.3918]
[1747774503053,0.00596421,2513.4,2513.3,1.71001859]
[1747774503247,0.00596421,2513.4,2513.3,3.69939359]
[1747774504757,0.80138421,2513.4,2513.3,3.69939359]
[1747774505257,0.00596421,2513.4,2513.3,3.69939359]
[1747774507654,3.2078,2514.0,2513.3,8.69939359]
[1747774507857,4.00305,2514.0,2513.5,0.79537]
[1747774508058,4.00305,2514.0,2513.6,1.98]
[1747774508255,3.2078,2514.0,2513.7,1.3207]
[1747774508456,0.79516,2514.3,2513.7,4.5285]
[1747774508670,0.00596421,2514.3,2513.8,0.79528]
[1747774508859,0.00596421,2514.3,2513.9,1.3409]
[1747774509051,0.80112421,2514.3,2513.9,1.3409]
[1747774509254,0.79518,2514.2,2513.9,3.329685]
[1747774509770,0.7952,2514.1,2513.9,3.329685]
[1747774510063,0.7952,2514.1,2513.9,1.3409]
[1747774510264,0.7952,2514.1,2513.9,3.32976]
[1747774510964,0.79523,2514.0,2513.9,3.32976]
[1747774511166,0.79523,2514.0,2513.9,1.3409]
[1747774511465,0.79519,2514.2,2513.9,3.3298]
[1747774511760,0.00596421,2514.3,2513.9,1.3409]
[1747774511962,0.79523,2514.0,2513.9,1.3409]
[1747774512166,0.79517,2514.2,2513.9,1.3409]
[1747774512465,0.79517,2514.2,2514.0,3.2078]
[1747774512466,0.79518,2514.2,2514.0,3.2078]
[1747774512668,0.80111421,2514.3,2514.1,1.3458]
[1747774512857,0.80109421,2514.3,2514.2,0.6933]
[1747774513159,0.80109421,2514.3,2514.2,2.681965]
[1747774513963,0.00596421,2514.3,2514.2,2.681965]
[1747774514367,0.80109421,2514.3,2514.2,2.681965]
[1747774516260,0.80109421,2514.3,2514.2,0.6933]
[1747774516459,2.78975921,2514.3,2514.2,0.6933]
[1747774516859,2.78975921,2514.3,2513.7,3.21376421]
[1747774516860,1.98792,2514.2,2513.7,0.00596421]
[1747774517070,0.79529,2513.8,2513.7,1.37806421]
[1747774517373,0.79527,2513.9,2513.7,1.37806421]
[1747774517667,0.79528,2513.9,2513.7,1.37806421]
[1747774517861,0.79528,2513.9,2513.7,3.36708421]
[1747774518063,0.79528,2513.9,2513.8,1.2864]
[1747774518570,0.79528,2513.9,2513.8,3.27538]
[1747774520378,0.6415,2514.2,2513.8,3.27538]
[1747774520570,0.00596421,2514.3,2514.2,0.08486477]
[1747774520769,0.80109421,2514.3,2514.2,0.08486477]
[1747774521069,5.99755921,2514.3,2514.2,0.08486477]
[1747774521272,2.78975921,2514.3,2514.2,0.08486477]
[1747774521460,5.99755921,2514.3,2514.2,0.08486477]
[1747774523064,4.00889421,2514.3,2514.2,0.08486477]
[1747774523276,5.99755921,2514.3,2514.2,0.08486477]
[1747774524067,5.20242921,2514.3,2514.2,0.08486477]
[1747774524372,4.00889421,2514.3,2514.2,0.77076477]
[1747774525774,0.80109421,2514.3,2514.2,2.75942977]
[1747774526073,0.80109421,2514.3,2514.2,0.08486477]
[1747774526274,5.99755921,2514.3,2514.2,0.08486477]
[1747774526471,6.69005921,2514.3,2514.2,0.08486477]
[1747774526670,8.08565921,2514.3,2514.2,0.08486477]
[1747774535976,0.79526,2513.9,2513.8,0.27742805]
[1747774536485,2.78424001,2513.9,2513.8,0.27742805]
[1747774536674,0.79529,2513.8,2513.7,0.37558222]
[1747774536879,0.79529,2513.8,2513.6,0.54985615]
[1747774536880,0.79532,2513.7,2513.6,0.54985615]
[1747774537080,0.79545,2513.3,2513.2,0.55741357]
[1747774537280,13.80445,2513.3,2513.2,0.55741357]
[1747774537480,19.001705,2513.3,2513.2,0.55741357]
[1747774537981,19.671405,2513.3,2513.2,0.55741357]
[1747774538584,5.866955,2513.3,2513.0,0.00596421]
[1747774538883,3.2078,2513.3,2513.0,2.79101921]
[1747774539082,3.2078,2513.3,2513.1,2.77991]
[1747774539285,0.79542,2513.4,2513.2,1.3064]
[1747774539681,0.79542,2513.4,2513.2,3.295815]
[1747774539885,0.79542,2513.4,2513.3,1.3064]
[1747774540082,13.009,2513.7,2513.3,4.5142]
[1747774540280,0.79535,2513.6,2513.4,0.6462]
[1747774540483,0.79535,2513.6,2513.5,1.3064]
[1747774541083,0.79535,2513.6,2513.5,3.29562]
[1747774542986,14.3933,2513.9,2513.5,3.29562]
[1747774543186,16.3824,2513.9,2513.5,1.3064]
[1747774543379,3.8975,2514.1,2513.6,3.2078]
[1747774543584,0.79529,2513.8,2513.7,2.0081]
[1747774543979,0.79529,2513.8,2513.7,3.99715999]
[1747774544282,0.79529,2513.8,2513.7,4.31533691]
[1747774545492,2.78435,2513.8,2513.7,0.31817692]
[1747774547085,0.79529,2513.8,2513.7,0.31817692]
[1747774547385,2.78435,2513.8,2513.7,0.31817692]
[1747774550087,2.78435,2513.8,2513.7,0.40304169]
[1747774551683,2.78435,2513.8,2513.7,0.08486477]
[1747774555896,2.78435,2513.8,2513.7,0.40307837]
[1747774556589,2.78435,2513.8,2513.1,0.6761]
[1747774556590,0.79548,2513.2,2513.1,0.6761]
[1747774556790,0.79548,2513.2,2513.1,1.3388]
[1747774557092,0.79548,2513.2,2513.1,3.328335]
[1747774558099,0.79548,2513.2,2513.1,4.716435]
[1747774561995,2.785015,2513.2,2513.1,2.7269]
[1747774565290,2.785015,2513.2,2513.1,2.81176477]
[1747774566599,0.79548,2513.2,2513.1,5.59680977]
[1747774566902,0.79548,2513.2,2513.1,5.59679977]
[1747774567998,0.79548,2513.2,2513.1,4.80129977]
[1747774568801,0.79548,2513.2,2513.1,5.11955605]
[1747774570005,2.785015,2513.2,2513.1,1.79122105]
[1747774570403,0.79548,2513.2,2513.1,3.78075605]
[1747774570603,1.3804,2513.4,2513.1,5.89435605]
[1747774570800,0.79547,2513.3,2513.2,1.3948]
[1747774571195,0.79547,2513.3,2513.2,3.384255]
[1747774571998,0.79547,2513.3,2513.2,3.70251128]
[1747774577109,0.79547,2513.3,2513.2,1.71305628]
[1747774577308,0.79547,2513.3,2513.2,3.70251128]
[1747774580419,0.79547,2513.3,2513.2,3.78737605]
[1747774580612,0.79547,2513.3,2513.2,6.99517605]
[1747774580999,2.784925,2513.3,2513.2,1.79792105]
[1747774581709,2.784925,2513.3,2513.2,0.40312105]
[1747774581912,3.484725,2513.3,2513.2,0.40312105]
[1747774584206,4.815025,2513.3,2513.2,0.40312105]
[1747774584613,4.815025,2513.3,2513.2,0.08486477]
[1747774587020,0.79561,2512.8,2512.7,0.3710622]
[1747774587220,29.70341,2512.8,2512.7,0.3710622]
[1747774587420,31.69326,2512.8,2512.7,0.3710622]
[1747774587619,33.06506,2512.8,2512.7,0.3710622]
[1747774587820,33.74156,2512.8,2512.7,0.3710622]
[1747774588023,33.74156,2512.8,2512.4,1.4096]
[1747774588024,34.93502,2512.8,2512.4,1.4096]
[1747774588221,0.7957,2512.5,2512.4,1.4096]
[1747774589921,0.7957,2512.5,2512.4,1.72794939]
[1747774590525,0.7957,2512.5,2512.4,3.71803939]